FIN.Transaction Date,MCH.Merchant Name,FIN.Accounting Code 01 Value,FIN.Accounting Code 01 Description,FIN.Accounting Code 03 Description,FIN.Net Transaction Amount,FIN.Transaction Amount,FIN.TAX.Net Amount,FIN.Tax Amount,FIN.TAX.Tax Rate,FIN.Tax Rate(%)
27/09/2019,DVLA VEHICLE TAX,A26901,Vehicle Pool Workshop,Licences & M.O.T.'S,722.50,722.50,.00,.00,.00,.00
27/09/2019,DVLA VEHICLE TAX,A26901,Vehicle Pool Workshop,Licences & M.O.T.'S,722.50,722.50,.00,.00,.00,.00
27/09/2019,DVLA VEHICLE TAX,A26901,Vehicle Pool Workshop,Licences & M.O.T.'S,722.50,722.50,.00,.00,.00,.00
27/09/2019,DVLA VEHICLE TAX,A26901,Vehicle Pool Workshop,Licences & M.O.T.'S,167.50,167.50,.00,.00,.00,.00
27/09/2019,DVLA VEHICLE TAX,A26901,Vehicle Pool Workshop,Licences & M.O.T.'S,722.50,722.50,.00,.00,.00,.00
27/09/2019,DVLA VEHICLE TAX,A26901,Vehicle Pool Workshop,Licences & M.O.T.'S,722.50,722.50,.00,.00,.00,.00
29/09/2019,CO OP FOOD,N10101,Southwell Tr admin & ops,Vending Machine Provisions,13.20,13.20,.00,.00,.00,.00
28/09/2019,Southwell Garden C ent,N10101,Southwell Tr admin & ops,Miscellaneous Expenses,40.00,40.00,.00,.00,.00,.00
27/09/2019,CO OP FOOD,N10101,Southwell Tr admin & ops,Vending Machine Provisions,13.20,13.20,.00,.00,.00,.00
27/09/2019,Oyster Auto-top up,A15028,Aggregated Budgets,Travel And Subsistence,20.00,20.00,.00,.00,.00,.00
27/09/2019,Oyster Auto-top up,A15028,Aggregated Budgets,Travel And Subsistence,20.00,20.00,.00,.00,.00,.00
27/09/2019,Oyster Auto-top up,A15028,Aggregated Budgets,Travel And Subsistence,20.00,20.00,.00,.00,.00,.00
28/09/2019,WWW.HSDONLINE.CO.UK,A10109,Heritage Culture and Visitors,Other Equipment And Tools,56.38,67.66,.00,11.28,.00,20.00
27/09/2019,VICTORIA STREET,C54495,Food Environment Grant,Contractual Services,3.20,3.20,.00,.00,.00,.00
27/09/2019,ASDA  STORES 4201,C54495,Food Environment Grant,Contractual Services,25.05,25.05,.00,.00,.00,.00
01/10/2019,Amazon.co.uk MO1LV0424,A10810,Communications & Cust Services,Corporate Communication,16.62,19.95,.00,3.33,.00,20.00
30/09/2019,BOOKDEPOSITORY.COM,A10217,Syrian resettlement scheme,Recharge Third Party,45.81,45.81,.00,.00,.00,.00
30/09/2019,ROYAL MAIL CHARGES,A10833,Central Postages,Postages,1.50,1.50,.00,.00,.00,.00
30/09/2019,ROYAL MAIL CHARGES,A10833,Central Postages,Postages,2.00,2.00,.00,.00,.00,.00
30/09/2019,ROYAL MAIL CHARGES,A10833,Central Postages,Postages,1.50,1.50,.00,.00,.00,.00
30/09/2019,ASDA GROCERIES ONLINE,A11831,Castle House,Catering,42.52,42.52,.00,.00,.00,.00
01/10/2019,CO OP FOOD,N10101,Southwell Tr admin & ops,Vending Machine Provisions,17.60,17.60,.00,.00,.00,.00
01/10/2019,CO-OP GROUP 017957,N10101,Southwell Tr admin & ops,Meals,6.70,6.70,.00,.00,.00,.00
01/10/2019,BOOKER LIMITED MANSFIE,N10101,Southwell Tr admin & ops,Meals,92.37,92.37,.00,.00,.00,.00
01/10/2019,Trainline.com,A10864,Corporate Management Team,Travel And Subsistence,325.09,325.09,.00,.00,.00,.00
01/10/2019,123-REG.CO.UK,A10109,Heritage Culture and Visitors,Advertising,6.99,8.39,.00,1.40,.00,20.00
01/10/2019,LNER WEB SALES,A10809,Customer Services,Travel And Subsistence,71.70,71.70,.00,.00,.00,.00
01/10/2019,AMZNMktplace,A10109,Heritage Culture and Visitors,Advertising,162.47,194.96,.00,32.49,.00,20.00
01/10/2019,MAILCHIMP    MONTHLY,A10109,Heritage Culture and Visitors,Advertising,69.81,69.81,.00,.00,.09,.00
02/10/2019,XLN TELECOM LTD,N10101,Southwell Tr admin & ops,Telephones,65.44,78.53,.00,13.09,.00,20.00
02/10/2019,Trainline,A10819,Legal Section,Training Expenses,26.46,26.46,.00,.00,.00,.00
02/10/2019,WWW.THELAWSOCIETY.ORG,A10864,Corporate Management Team,Subscriptions,338.00,338.00,.00,.00,.00,.00
02/10/2019,NEWARK & SHERWOOD LOCK,A11126,Cctv,Cctv Operation,4.17,5.00,.00,.83,.00,20.00
03/10/2019,ASDA GROCERIES ONLINE,A11831,Castle House,Catering,52.02,52.02,.00,.00,.00,.00
02/10/2019,CHARTERED INSTITUTE OF,A10819,Legal Section,Training Expenses,79.50,79.50,.00,.00,.00,.00
04/10/2019,RBI QSS SUBS,A11841,Corporate Property,Publications,460.90,460.90,.00,.00,.00,.00
04/10/2019,CO OP FOOD,N10101,Southwell Tr admin & ops,Vending Machine Provisions,13.20,13.20,.00,.00,.00,.00
03/10/2019,CO OP FOOD,N10101,Southwell Tr admin & ops,Vending Machine Provisions,15.40,15.40,.00,.00,.00,.00
04/10/2019,NATURESCAPE,A11338,Sconce & Devon Park,Contractual Services,63.58,76.30,.00,12.72,.00,20.00
06/10/2019,AMZNMktplace,A10109,Heritage Culture and Visitors,Other Equipment And Tools,14.99,17.99,.00,3.00,.00,20.00
06/10/2019,VIRTUAL COLLEGE LIMITE,A10109,Heritage Culture and Visitors,Contractual Services,72.00,86.40,.00,14.40,.00,20.00
04/10/2019,LNER WEB SALES,A10813,Land Charges,Travel And Subsistence,40.20,40.20,.00,.00,.00,.00
04/10/2019,GELDARDS LLP,A11604,Area Planning,Professional Services,289.00,346.80,.00,57.80,.00,20.00
07/10/2019,Amazon.co.uk MO72M9ZT4,A10841,Central Personnel Expenses,Internal Training,72.91,72.91,.00,.00,.00,.00
04/10/2019,WAITROSE 227,C54495,Food Environment Grant,Contractual Services,85.17,85.17,.00,.00,.00,.00
04/10/2019,ASDA GROCERIES ONLINE,A11831,Castle House,Catering,89.13,89.13,.00,.00,.00,.00
04/10/2019,ASDA GROCERIES ONLINE,A11831,Castle House,Cleaning Materials,66.00,66.00,.00,.00,.00,.00
04/10/2019,ASDA GROCERIES ONLINE,A11831,Castle House,Cleaning Materials,-24.00,-24.00,.00,.00,.00,.00
04/10/2019,WWW.TTS-GROUPS.CO.UK,A10109,Heritage Culture and Visitors,Education & Outreach,178.84,214.61,.00,35.77,.00,20.00
07/10/2019,,,,,-11840.73,-11840.73,.00,.00,.00,.00
04/10/2019,J H MASDING AND SO,A12014,Lorry Park,Materials,83.33,100.00,.00,16.67,.00,20.00
04/10/2019,East Midlands Rail,A10864,Corporate Management Team,Travel And Subsistence,7.60,7.60,.00,.00,.00,.00
06/10/2019,AMZNMktplace,C54015,Vulnerable People,Other Equipment And Tools,23.18,27.82,.00,4.64,.00,20.00
07/10/2019,CO OP FOOD,N10101,Southwell Tr admin & ops,Vending Machine Provisions,13.20,13.20,.00,.00,.00,.00
07/10/2019,LNER WEB SALES,A10864,Corporate Management Team,Travel And Subsistence,114.00,114.00,.00,.00,.00,.00
07/10/2019,ASDA GROCERIES ONLINE,A11831,Castle House,Catering,52.70,52.70,.00,.00,.00,.00
08/10/2019,LNER WEB SALES,A10215,Strategic Hsg (Was Community),Travel And Subsistence,7.60,7.60,.00,.00,.00,.00
08/10/2019,HILLS OF NEWARK LTD,A11831,Castle House,Repairs And Maintenance,181.59,217.91,.00,36.32,.00,20.00
08/10/2019,LNER WEB SALES,A10895,Financial Services,Travel And Subsistence,42.90,42.90,.00,.00,.00,.00
08/10/2019,NEWARK CASTLE TO,A11901,Members Expenses,Travel And Subsistence,123.50,123.50,.00,.00,.00,.00
08/10/2019,NEWARK CASTLE TO,A10213,Housing Options,Travel And Subsistence,123.50,123.50,.00,.00,.00,.00
08/10/2019,NEWARK CASTLE TO,A10213,Housing Options,Travel And Subsistence,123.50,123.50,.00,.00,.00,.00
08/10/2019,RENTOKIL INITIAL UK LT,A11336,Vicar Water Park,Contractual Services,44.06,52.87,.00,8.81,.00,20.00
08/10/2019,DISCLOSURE & BARRING,A11607,Energy Services,Professional Services,13.00,13.00,.00,.00,.00,.00
09/10/2019,LNER WEB SALES,A10864,Corporate Management Team,Travel And Subsistence,159.00,159.00,.00,.00,.00,.00
09/10/2019,MY.MORRISONS.COM,A11902,Civic Expenses,Allowance,20.00,20.00,.00,.00,.00,.00
09/10/2019,WWW.GARDENWILDLIFEDIRE,A11336,Vicar Water Park,Materials,15.99,15.99,.00,.00,.00,.00
09/10/2019,LNER WEB SALES,A11442,Arts Development,Contractual Services,132.75,132.75,.00,.00,.00,.00
09/10/2019,LNER WEB SALES,A10812,Personnel Section,Travel And Subsistence,132.75,132.75,.00,.00,.00,.00
09/10/2019,WAITROSE 227,A11831,Castle House,Catering,8.68,8.68,.00,.00,.00,.00
08/10/2019,AMZNMKTPLACE AMAZON.CO,A11135,Env Health Proactive,Clothing And Uniforms,34.48,34.48,.00,.00,.00,.00
08/10/2019,NCP LTD GRANTHAM STATI,A10864,Corporate Management Team,Travel And Subsistence,10.42,12.50,.00,2.08,.00,20.00
09/10/2019,WILKO RETAIL LIMIT,A10213,Housing Options,Professional Services,4.50,4.50,.00,.00,.00,.00
09/10/2019,WILKO RETAIL LIMIT,A10213,Housing Options,Professional Services,5.00,5.00,.00,.00,.00,20.00
09/10/2019,DISCLOSURE & BARRING,A10812,Personnel Section,Disclosure & barring service,13.00,13.00,.00,.00,.00,.00
09/10/2019,DISCLOSURE & BARRING,A10812,Personnel Section,Disclosure & barring service,13.00,13.00,.00,.00,.00,.00
10/10/2019,DVLA VEHICLE TAX,A26901,Vehicle Pool Workshop,Licences & M.O.T.'S,262.50,262.50,.00,.00,.00,.00
10/10/2019,DVLA VEHICLE TAX,A26901,Vehicle Pool Workshop,Licences & M.O.T.'S,262.50,262.50,.00,.00,.00,.00
10/10/2019,DVLA VEHICLE TAX,A26901,Vehicle Pool Workshop,Licences & M.O.T.'S,722.50,722.50,.00,.00,.00,.00
10/10/2019,DVLA VEHICLE TAX,A26901,Vehicle Pool Workshop,Licences & M.O.T.'S,202.00,202.00,.00,.00,.00,.00
10/10/2019,DVLA VEHICLE TAX,A26901,Vehicle Pool Workshop,Licences & M.O.T.'S,722.50,722.50,.00,.00,.00,.00
10/10/2019,DVSA,A26901,Vehicle Pool Workshop,Licences & M.O.T.'S,401.00,401.00,.00,.00,.00,.00
10/10/2019,WWW.INTELLIGENTHANDDRY,A11810,Newark Business Innovation Cen,Premises Repairs & Renewals,223.00,267.60,.00,44.60,.00,20.00
10/10/2019,Wish.com,A11810,Newark Business Innovation Cen,Premises Repairs & Renewals,58.77,58.77,.00,.00,.00,.00
10/10/2019,LNER WEB SALES,A10904,Council Tax,Travel And Subsistence,16.70,16.70,.00,.00,.00,.00
10/10/2019,WWW.LQM.CO.UK,A10841,Central Personnel Expenses,Internal Training,36.00,36.00,.00,.00,.00,.00
10/10/2019,ASDA GROCERIES ONLINE,A11831,Castle House,Cleaning Materials,42.50,42.50,.00,.00,.00,.00
10/10/2019,ASDA GROCERIES ONLINE,A11831,Castle House,Catering,51.30,51.30,.00,.00,.00,.00
10/10/2019,WWW.NISBETS.COM,A11831,Castle House,Repairs And Maintenance,151.95,182.34,.00,30.39,.00,20.00
10/10/2019,CO OP FOOD,N10101,Southwell Tr admin & ops,Vending Machine Provisions,13.20,13.20,.00,.00,.00,.00
10/10/2019,WWW.BRITISH-GYMNASTICS,N10101,Southwell Tr admin & ops,Equipment badges,248.92,248.92,.00,.00,.00,.00
10/10/2019,WILKO RETAIL LIMIT,A11126,Cctv,Cctv Operation,8.33,10.00,.00,1.67,.00,20.00
11/10/2019,WM MORRISONS STORE,A10109,Heritage Culture and Visitors,Catering,3.13,3.13,.00,.00,.00,.00
11/10/2019,WAITROSE 227,C54495,Food Environment Grant,Contractual Services,113.33,113.33,.00,.00,.00,.00
11/10/2019,AMZNMktplace,A11831,Castle House,Cleaning Materials,67.45,80.94,.00,13.49,.00,20.00
11/10/2019,WWW.BPP.COM,A10895,Financial Services,Publications,25.80,25.80,.00,.00,.00,.00
11/10/2019,E.ON ENERGY SOLUTIONS,A10213,Housing Options,Salaries basic,7.92,7.92,.00,.00,.00,.00
11/10/2019,ZIZZI ST KATHERINE,A10864,Corporate Management Team,Travel And Subsistence,151.48,181.78,.00,30.30,.00,20.00
11/10/2019,VERIFONE TAXI/PRIVATE,A10864,Corporate Management Team,Travel And Subsistence,23.32,23.32,.00,.00,.00,.00
11/10/2019,TFL TRAVEL CH,A10864,Corporate Management Team,Travel And Subsistence,2.40,2.40,.00,.00,.00,.00
13/10/2019,ADOBE CREATIVE CLOUD,A10109,Heritage Culture and Visitors,Advertising,59.00,70.80,.00,11.80,.00,20.00
11/10/2019,DISCLOSURE & BARRING,A11607,Energy Services,Professional Services,13.00,13.00,.00,.00,.00,.00
14/10/2019,AMZNMKTPLACE AMAZON.CO,A11135,Env Health Proactive,Office Equipment Purchase,16.48,16.48,.00,.00,.00,.00
14/10/2019,ASDA GROCERIES ONLINE,A11831,Castle House,Catering,47.28,47.28,.00,.00,.00,.00
14/10/2019,ASDA GROCERIES ONLINE,A11831,Castle House,Catering,-1.50,-1.50,.00,.00,.00,.00
14/10/2019,THE PRINCE RUPERT,A10864,Corporate Management Team,Travel And Subsistence,230.40,230.40,.00,.00,.00,.00
13/10/2019,PAYPAL  EMDIGRADIO,A10864,Corporate Management Team,Travel And Subsistence,125.00,125.00,.00,.00,.00,.00
15/10/2019,Amazon.co.uk MO5P76PL4,A10109,Heritage Culture and Visitors,Education & Outreach,14.82,17.78,.00,2.96,20.00,20.00
14/10/2019,LNER WEB SALES,A11573,Promotion Of Tourism,Travel And Subsistence,42.60,42.60,.00,.00,.00,.00
14/10/2019,Trainline,A10819,Legal Section,Travel And Subsistence,47.52,47.52,.00,.00,.00,.00
14/10/2019,GOVERNMENT EVENTS,A10864,Corporate Management Team,Course Fees,322.15,386.58,.00,64.43,.00,20.00
15/10/2019,ROYAL MAIL CHARGES,A10833,Central Postages,Postages,1.50,1.50,.00,.00,.00,.00
15/10/2019,ROYAL MAIL CHARGES,A10833,Central Postages,Postages,1.50,1.50,.00,.00,.00,.00
15/10/2019,ROYAL MAIL CHARGES,A10833,Central Postages,Postages,1.50,1.50,.00,.00,.00,.00
15/10/2019,WM MORRISONS STORE,A11902,Civic Expenses,Allowance,21.20,21.20,.00,.00,.00,.00
15/10/2019,WM MORRISONS STORE,A11902,Civic Expenses,Allowance,11.42,13.70,.00,2.28,.00,20.00
16/10/2019,AMZNMktplace,A10109,Heritage Culture and Visitors,Education & Outreach,17.71,21.25,.00,3.54,20.00,20.00
15/10/2019,CO OP FOOD,N10101,Southwell Tr admin & ops,Vending Machine Provisions,13.20,13.20,.00,.00,.00,.00
15/10/2019,WWW.THELAWSOCIETY.ORG,A10819,Legal Section,Subscriptions,338.00,338.00,.00,.00,.00,.00
16/10/2019,WM MORRISONS STORE,A10109,Heritage Culture and Visitors,Items For Resale,2.08,2.50,.00,.42,.00,20.00
16/10/2019,AMZNMktplace,A11135,Env Health Proactive,Clothing And Uniforms,24.98,29.98,.00,5.00,.00,20.00
16/10/2019,LNER WEB SALES,A10898,Administration Services,Travel And Subsistence,53.50,53.50,.00,.00,.00,.00
16/10/2019,LNER WEB SALES,A11844,Corporate Development,Travel And Subsistence,90.30,90.30,.00,.00,.00,.00
16/10/2019,POUNDSTRETCHER 569,A10109,Heritage Culture and Visitors,Education & Outreach,16.65,19.98,.00,3.33,.00,20.00
16/10/2019,W BOYES & CO LTD NEWAR,A10109,Heritage Culture and Visitors,Education & Outreach,25.00,30.00,.00,5.00,.00,20.00
16/10/2019,ROBIN CAR PARKS,A10213,Housing Options,Prevention Fund,10.00,12.00,.00,2.00,.00,20.00
16/10/2019,STARBUCKS,A10213,Housing Options,Prevention Fund,11.25,13.50,.00,2.25,.00,20.00
17/10/2019,AMZNMktplace,A10109,Heritage Culture and Visitors,Other Equipment And Tools,19.24,23.09,.00,3.85,.00,20.00
17/10/2019,LNER WEB SALES,A10904,Council Tax,Travel And Subsistence,9.10,9.10,.00,.00,.00,.00
17/10/2019,ASDA GROCERIES ONLINE,A11831,Castle House,Catering,42.30,42.30,.00,.00,.00,.00
18/10/2019,WAITROSE 227,C54495,Food Environment Grant,Contractual Services,112.67,112.67,.00,.00,.00,.00
19/10/2019,Oyster Auto-top up,A15028,Aggregated Budgets,Travel And Subsistence,20.00,20.00,.00,.00,.00,.00
18/10/2019,AMZNMktplace,A10109,Heritage Culture and Visitors,Other Equipment And Tools,3.32,3.99,.00,.67,.00,20.00
16/10/2019,CHUCKLES,A10109,Heritage Culture and Visitors,Education & Outreach,12.99,12.99,.00,.00,.00,.00
19/10/2019,CO OP FOOD,N10101,Southwell Tr admin & ops,Vending Machine Provisions,13.20,13.20,.00,.00,.00,.00
18/10/2019,CO OP FOOD,N10101,Southwell Tr admin & ops,Vending Machine Provisions,13.20,13.20,.00,.00,.00,.00
21/10/2019,SAUNASHOP.COM,N10101,Southwell Tr admin & ops,Repairs And Maintenance,300.43,360.52,.00,60.09,.00,20.00
21/10/2019,ARDMOOR LTD,A11336,Vicar Water Park,Local Nature Reserves Maintnce,38.25,45.90,.00,7.65,.00,20.00
21/10/2019,WM MORRISONS STORE,A10109,Heritage Culture and Visitors,Travel And Subsistence,3.60,3.60,.00,.00,.00,.00
21/10/2019,EASILY LTD,A10810,Communications & Cust Services,Corporate Communication,32.00,32.00,.00,.00,.00,.00
21/10/2019,EASILY LTD,A10810,Communications & Cust Services,Corporate Communication,60.00,60.00,.00,.00,.00,.00
21/10/2019,EASILY LTD,A10810,Communications & Cust Services,Corporate Communication,90.00,90.00,.00,.00,.00,.00
21/10/2019,ASDA GROCERIES ONLINE,A11831,Castle House,Catering,40.52,40.52,.00,.00,.00,.00
21/10/2019,TNT_DIRECT,A10802,Ict,ICT ordered equipment,42.67,51.20,.00,8.53,.00,20.00
21/10/2019,LNER WEB SALES,A11136,Env Health Reactive,Travel And Subsistence,39.50,39.50,.00,.00,.00,.00
18/10/2019,WWW.3.HILTON.COM,A10864,Corporate Management Team,Travel And Subsistence,11.25,13.50,.00,2.25,.00,20.00
21/10/2019,WWW.NISBETS.COM,A11810,Newark Business Innovation Cen,Office Equipment Purchase,63.00,75.60,.00,12.60,.00,20.00
22/10/2019,WWW.INTELLIGENTHANDDRY,A11810,Newark Business Innovation Cen,Premises Repairs & Renewals,231.99,278.39,.00,46.40,.00,20.00
22/10/2019,WWW.ARGOS.CO.UK,A11834,Repairs & Maintenance - A4T,Repairs And Maintenance,158.32,189.99,.00,31.67,.00,20.00
22/10/2019,NEWARK CASTLE TO,A11605,Planning Policy,Travel And Subsistence,26.30,26.30,.00,.00,.00,.00
22/10/2019,LNER WEB SALES,A10810,Communications & Cust Services,Travel And Subsistence,79.30,79.30,.00,.00,.00,.00
23/10/2019,WWW.PROFESSIONALBOOKS.,TC3135,Buttermarket refurbishment,Contract Work,55.80,66.96,.00,11.16,.00,20.00
23/10/2019,AMZNMKTPLACE AMAZON.CO,A11810,Newark Business Innovation Cen,Office Equipment Purchase,34.97,41.96,.00,6.99,.00,20.00
24/10/2019,AMZNMKTPLACE AMAZON.CO,A10109,Heritage Culture and Visitors,Clothing And Uniforms,21.34,21.34,.00,.00,.00,.00
24/10/2019,ASDA GROCERIES ONLINE,A11831,Castle House,Catering,49.30,49.30,.00,.00,.00,.00
24/10/2019,NEWARK CASTLE TO,A10819,Legal Section,Travel And Subsistence,7.80,7.80,.00,.00,.00,.00
23/10/2019,East Midlands Rail,A10864,Corporate Management Team,Travel And Subsistence,159.00,159.00,.00,.00,.00,.00
25/10/2019,AMZ H&S Alliance UK Lt,A10109,Heritage Culture and Visitors,Other Equipment And Tools,-3.32,-3.99,.00,-.67,.00,20.00
25/10/2019,VIRTUAL COLLEGE LIMITE,A10841,Central Personnel Expenses,Internal Training,28.80,28.80,.00,.00,.00,.00
26/10/2019,FACEBK SUYH2PNDQ2,A10109,Heritage Culture and Visitors,Advertising,99.54,99.54,.00,.00,.00,.00
26/10/2019,CO OP FOOD,N10101,Southwell Tr admin & ops,Vending Machine Provisions,17.60,17.60,.00,.00,.00,.00
25/10/2019,WWW.THELAWSOCIETY.ORG,A10819,Legal Section,Subscriptions,338.00,338.00,.00,.00,.00,.00
28/10/2019,AMZNMktplace,A10109,Heritage Culture and Visitors,Other Equipment And Tools,40.78,48.93,.00,8.15,.00,20.00
28/10/2019,ASDA GROCERIES ONLINE,A11831,Castle House,Cleaning Materials,80.00,80.00,.00,.00,.00,.00
28/10/2019,ASDA GROCERIES ONLINE,A11831,Castle House,Cleaning Materials,-24.00,-24.00,.00,.00,.00,.00
28/10/2019,LNER WEB SALES,A11604,Area Planning,Travel And Subsistence,27.40,27.40,.00,.00,.00,.00
28/10/2019,ASDA GROCERIES ONLINE,A11831,Castle House,Catering,40.52,40.52,.00,.00,.00,.00
29/10/2019,LNER WEB SALES,A11604,Area Planning,Travel And Subsistence,162.00,162.00,.00,.00,.00,.00
29/10/2019,ROYAL MAIL CHARGES,A10833,Central Postages,Postages,1.50,1.50,.00,.00,.00,.00
29/10/2019,ROYAL MAIL CHARGES,A10833,Central Postages,Postages,3.00,3.00,.00,.00,.00,.00
28/10/2019,The Furniture Project,A10213,Housing Options,Recharge Third Party,60.00,60.00,.00,.00,.00,.00
30/10/2019,WWW.OFFICEFURNITUREONL,A11337,Community Facilities Mgmt,Office Equipment Purchase,182.00,218.40,.00,36.40,.00,20.00
30/10/2019,AMZNMktplace,A10109,Heritage Culture and Visitors,Other Equipment And Tools,3.32,3.99,.00,.67,.00,20.00
30/10/2019,CO OP FOOD,N10101,Southwell Tr admin & ops,Vending Machine Provisions,17.60,17.60,.00,.00,.00,.00
31/10/2019,ASDA GROCERIES ONLINE,A11831,Castle House,Catering,50.60,50.60,.00,.00,.00,.00
31/10/2019,ASDA GROCERIES ONLINE,A11831,Castle House,Catering,-3.00,-3.00,.00,.00,.00,.00
31/10/2019,Amazon Prime R05IX57B5,A10109,Heritage Culture and Visitors,Advertising,7.99,7.99,.00,.00,.00,.00
01/11/2019,XLN TELECOM LTD,N10101,Southwell Tr admin & ops,Vending Machine Provisions,65.44,78.53,.00,13.09,.00,20.00
03/11/2019,AMZNMktplace,A10109,Heritage Culture and Visitors,Other Equipment And Tools,53.05,53.05,.00,.00,.00,.00
01/11/2019,MAILCHIMP    MONTHLY,A10109,Heritage Culture and Visitors,Advertising,66.42,66.42,.00,.00,.09,.00
01/11/2019,DISCLOSURE & BARRING,A10812,Personnel Section,Disclosure & barring service,13.00,13.00,.00,.00,.00,.00
04/11/2019,,,,,-16676.15,-16676.15,.00,.00,.00,.00
03/11/2019,AMZNMKTPLACE AMAZON.CO,A10109,Heritage Culture and Visitors,Recharge Tp Catering,19.03,22.84,.00,3.81,.00,20.00
04/11/2019,NEWARK & SHERWOOD LOCK,A11604,Area Planning,Professional Services,60.00,72.00,.00,12.00,.00,20.00
04/11/2019,LNER WEB SALES,A11604,Area Planning,Travel And Subsistence,26.70,26.70,.00,.00,.00,.00
04/11/2019,NEWARK CASTLE TO,A10215,Strategic Hsg (Was Community),Travel And Subsistence,271.00,271.00,.00,.00,.00,.00
04/11/2019,ASDA GROCERIES ONLINE,A11831,Castle House,Catering,40.67,40.67,.00,.00,.00,.00
04/11/2019,ASDA GROCERIES ONLINE,A11831,Castle House,Cleaning Materials,72.00,72.00,.00,.00,.00,.00
04/11/2019,NEWARK CASTLE TO,A10819,Legal Section,Training Expenses,7.60,7.60,.00,.00,.00,.00
05/11/2019,NEWARK CASTLE TO,A10895,Financial Services,Travel And Subsistence,108.00,108.00,.00,.00,.00,.00
05/11/2019,WESTMINSTER FORUM PROJ,A10864,Corporate Management Team,Course Fees,230.00,276.00,.00,46.00,.00,20.00
05/11/2019,CURRYS,A11126,Cctv,Cctv Operation,24.99,29.99,.00,5.00,.00,20.00
05/11/2019,CURRYS,A11126,Cctv,Cctv Operation,29.99,29.99,.00,.00,.00,.00
05/11/2019,CURRYS,A11126,Cctv,Cctv Operation,-29.99,-29.99,.00,.00,.00,.00
05/11/2019,SCREWFIX NEWARK,A11002,Refuse Collection,Materials,14.98,17.98,.00,3.00,.00,20.00
05/11/2019,DVLA VEHICLE TAX,A26901,Vehicle Pool Workshop,Licences & M.O.T.'S,262.50,262.50,.00,.00,.00,.00
05/11/2019,DVLA VEHICLE TAX,A26901,Vehicle Pool Workshop,Licences & M.O.T.'S,262.50,262.50,.00,.00,.00,.00
05/11/2019,DVLA VEHICLE TAX,A26901,Vehicle Pool Workshop,Licences & M.O.T.'S,262.50,262.50,.00,.00,.00,.00
05/11/2019,DVLA VEHICLE TAX,A26901,Vehicle Pool Workshop,Licences & M.O.T.'S,262.50,262.50,.00,.00,.00,.00
05/11/2019,DVLA VEHICLE TAX,A26901,Vehicle Pool Workshop,Licences & M.O.T.'S,262.50,262.50,.00,.00,.00,.00
05/11/2019,DVLA VEHICLE TAX,A26901,Vehicle Pool Workshop,Licences & M.O.T.'S,262.50,262.50,.00,.00,.00,.00
05/11/2019,DVLA VEHICLE TAX,A26901,Vehicle Pool Workshop,Licences & M.O.T.'S,262.50,262.50,.00,.00,.00,.00
05/11/2019,DVLA VEHICLE TAX,A26901,Vehicle Pool Workshop,Licences & M.O.T.'S,262.50,262.50,.00,.00,.00,.00
05/11/2019,DVLA VEHICLE TAX,A26901,Vehicle Pool Workshop,Licences & M.O.T.'S,262.50,262.50,.00,.00,.00,.00
05/11/2019,DVLA VEHICLE TAX,A26901,Vehicle Pool Workshop,Licences & M.O.T.'S,262.50,262.50,.00,.00,.00,.00
05/11/2019,DVLA VEHICLE TAX,A26901,Vehicle Pool Workshop,Licences & M.O.T.'S,262.50,262.50,.00,.00,.00,.00
05/11/2019,DVLA VEHICLE TAX,A26901,Vehicle Pool Workshop,Licences & M.O.T.'S,262.50,262.50,.00,.00,.00,.00
05/11/2019,DVLA VEHICLE TAX,A26901,Vehicle Pool Workshop,Licences & M.O.T.'S,262.50,262.50,.00,.00,.00,.00
05/11/2019,DVLA VEHICLE TAX,A26901,Vehicle Pool Workshop,Licences & M.O.T.'S,262.50,262.50,.00,.00,.00,.00
05/11/2019,WM MORRISONS STORE,A10109,Heritage Culture and Visitors,Catering,10.83,13.00,.00,2.17,.00,20.00
06/11/2019,LNER WEB SALES,A11604,Area Planning,Travel And Subsistence,47.50,47.50,.00,.00,.00,.00
06/11/2019,AMZNMktplace,A11831,Castle House,Catering,23.19,23.19,.00,.00,.00,.00
05/11/2019,PREMIER INN,A10895,Financial Services,Travel And Subsistence,378.98,378.98,.00,.00,.00,.00
06/11/2019,LNER WEB SALES,A11136,Env Health Reactive,Travel And Subsistence,25.00,25.00,.00,.00,.00,.00
06/11/2019,LNER WEB SALES,A11136,Env Health Reactive,Travel And Subsistence,60.50,60.50,.00,.00,.00,.00
06/11/2019,LNER WEB SALES,A11136,Env Health Reactive,Travel And Subsistence,49.00,49.00,.00,.00,.00,.00
06/11/2019,LNER WEB SALES,A11136,Env Health Reactive,Travel And Subsistence,66.50,66.50,.00,.00,.00,.00
06/11/2019,NEWARK CASTLE TO,A10215,Strategic Hsg (Was Community),Travel And Subsistence,55.50,55.50,.00,.00,.00,.00
05/11/2019,PAYPAL  EMDIGRADIO,A10864,Corporate Management Team,Travel And Subsistence,-50.00,-50.00,.00,.00,.00,.00
05/11/2019,CO OP FOOD,N10101,Southwell Tr admin & ops,Meals,12.00,12.00,.00,.00,.00,.00
05/11/2019,CO OP FOOD,N10101,Southwell Tr admin & ops,Vending Machine Provisions,13.20,13.20,.00,.00,.00,.00
07/11/2019,DVSA,A26901,Vehicle Pool Workshop,Materials,410.00,410.00,.00,.00,.00,.00
07/11/2019,CO OP FOOD,N10101,Southwell Tr admin & ops,Vending Machine Provisions,13.20,13.20,.00,.00,.00,.00
07/11/2019,AMZNMktplace,A11604,Area Planning,Is Stock Consumables,2.67,3.21,.00,.54,.00,20.00
07/11/2019,ASDA GROCERIES ONLINE,A11831,Castle House,Catering,42.10,42.10,.00,.00,.00,.00
07/11/2019,SP   COX EVENTS LTD,A10864,Corporate Management Team,Travel And Subsistence,80.00,80.00,.00,.00,.00,.00
07/11/2019,LIDL GB NEWARK,C54495,Food Environment Grant,Contractual Services,47.95,47.95,.00,.00,.00,.00
09/11/2019,CO-OP GROUP 017957,N10101,Southwell Tr admin & ops,Vending Machine Provisions,6.60,6.60,.00,.00,.00,.00
09/11/2019,WAITROSE 227,A10864,Corporate Management Team,Travel And Subsistence,79.45,79.45,.00,.00,.00,.00
09/11/2019,WAITROSE 227,A10864,Corporate Management Team,Travel And Subsistence,5.20,5.20,.00,.00,.00,20.00
07/11/2019,Trainline.com,A10109,Heritage Culture and Visitors,Education & Outreach,46.19,46.19,.00,.00,.00,.00
07/11/2019,Trainline.com,A10109,Heritage Culture and Visitors,Education & Outreach,47.21,47.21,.00,.00,.00,.00
10/11/2019,CO OP FOOD,N10101,Southwell Tr admin & ops,Vending Machine Provisions,13.20,13.20,.00,.00,.00,.00
08/11/2019,WAITROSE 227,C54495,Food Environment Grant,Contractual Services,38.92,38.92,.00,.00,.00,.00
11/11/2019,THE RANGE-NEWARK,A26901,Vehicle Pool Workshop,Materials,5.40,6.48,.00,1.08,.00,20.00
11/11/2019,LNER WEB SALES,A11604,Area Planning,Travel And Subsistence,28.00,28.00,.00,.00,.00,.00
11/11/2019,ASDA GROCERIES ONLINE,A11831,Castle House,Catering,42.02,42.02,.00,.00,.00,.00
11/11/2019,NANDOS WOKING,A10864,Corporate Management Team,Travel And Subsistence,9.25,9.25,.00,.00,.00,.00
11/11/2019,CO-OP GROUP 017091,A10213,Housing Options,Recharge Third Party,20.00,20.00,.00,.00,.00,.00
11/11/2019,CO-OP GROUP 017091,A10213,Housing Options,Recharge Third Party,20.00,20.00,.00,.00,.00,.00
11/11/2019,CO-OP GROUP 017091,A10213,Housing Options,Recharge Third Party,20.00,20.00,.00,.00,.00,.00
11/11/2019,CO-OP GROUP 017091,A10213,Housing Options,Recharge Third Party,20.00,20.00,.00,.00,.00,.00
11/11/2019,CO-OP GROUP 017091,A10213,Housing Options,Recharge Third Party,20.00,20.00,.00,.00,.00,.00
11/11/2019,CO-OP GROUP 017091,A10213,Housing Options,Recharge Third Party,20.00,20.00,.00,.00,.00,.00
12/11/2019,AMZNMktplace,A10109,Heritage Culture and Visitors,Cleaning Materials,11.94,11.94,.00,.00,.00,.00
12/11/2019,W BOYES & CO LTD NEWAR,A10109,Heritage Culture and Visitors,Cleaning Materials,1.87,2.25,.00,.38,.00,20.00
12/11/2019,AMZNMktplace,A10109,Heritage Culture and Visitors,Other Equipment And Tools,4.18,4.18,.00,.00,.00,.00
12/11/2019,LNER WEB SALES,A11604,Area Planning,Travel And Subsistence,13.60,13.60,.00,.00,.00,.00
12/11/2019,CO OP FOOD,N10101,Southwell Tr admin & ops,Vending Machine Provisions,13.20,13.20,.00,.00,.00,.00
12/11/2019,NEWARK & SHERWOOD LOCK,A10109,Heritage Culture and Visitors,Repairs And Maintenance,86.54,103.85,.00,17.31,.00,20.00
12/11/2019,DISCLOSURE & BARRING,A10812,Personnel Section,Disclosure & barring service,13.00,13.00,.00,.00,.00,.00
13/11/2019,TIGER HIRE,A11928,Newark Flooding,Contractual Services,610.00,732.00,.00,122.00,.00,20.00
13/11/2019,MARSHALLS OF SUTTON ON,A11928,Newark Flooding,Contractual Services,362.50,362.50,.00,.00,.00,.00
13/11/2019,NEWARK CASTLE TO,A11604,Area Planning,Travel And Subsistence,71.00,71.00,.00,.00,.00,.00
13/11/2019,ROYAL MAIL CHARGES,A10833,Central Postages,Postages,1.50,1.50,.00,.00,.00,.00
13/11/2019,ROYAL MAIL CHARGES,A10833,Central Postages,Postages,1.50,1.50,.00,.00,.00,.00
13/11/2019,ROYAL MAIL CHARGES,A10833,Central Postages,Postages,2.00,2.00,.00,.00,.00,.00
13/11/2019,ADOBE CREATIVE CLOUD,A10109,Heritage Culture and Visitors,Advertising,59.00,70.80,.00,11.80,.00,20.00
13/11/2019,CURRYS,A11104,Street Sweeping,Materials,16.65,19.98,.00,3.33,.00,20.00
14/11/2019,AMZNMKTPLACE AMAZON.CO,A10109,Heritage Culture and Visitors,Cleaning Materials,5.29,6.35,.00,1.06,.00,20.00
14/11/2019,ASDA GROCERIES ONLINE,A11831,Castle House,Cleaning Materials,82.00,82.00,.00,.00,.00,.00
14/11/2019,ASDA GROCERIES ONLINE,A11831,Castle House,Postages,41.30,41.30,.00,.00,.00,.00
14/11/2019,Amazon Prime,A10109,Heritage Culture and Visitors,Advertising,-7.99,-7.99,.00,.00,.00,.00
14/11/2019,CO OP FOOD,N10101,Southwell Tr admin & ops,Vending Machine Provisions,13.20,13.20,.00,.00,.00,.00
13/11/2019,CHARTERED INSTITUTE OF,A10819,Legal Section,Subscriptions,132.00,132.00,.00,.00,.00,.00
14/11/2019,WILKO RETAIL LIMITED,C54495,Food Environment Grant,Contractual Services,15.00,18.00,.00,3.00,.00,20.00
15/11/2019,TIGER HIRE,A11928,Newark Flooding,Contractual Services,192.00,230.40,.00,38.40,.00,20.00
15/11/2019,WILKO RETAIL LIMITED,A10109,Heritage Culture and Visitors,Items For Resale,14.17,17.00,.00,2.83,.00,20.00
14/11/2019,DOUBLETREE BY HILTON W,A10864,Corporate Management Team,Travel And Subsistence,45.00,45.00,.00,.00,.00,.00
16/11/2019,CO OP FOOD,N10101,Southwell Tr admin & ops,Vending Machine Provisions,13.20,13.20,.00,.00,.00,.00
15/11/2019,COVENTRY TROPHY CENTRE,N10101,Southwell Tr admin & ops,Other Equipment And Tools,40.87,49.05,.00,8.18,.00,20.00
15/11/2019,OSBORNES NEWARK,A10109,Heritage Culture and Visitors,Advertising,3.32,3.98,.00,.66,.00,20.00
15/11/2019,WILKO RETAIL LIMITED,A10109,Heritage Culture and Visitors,Advertising,8.33,10.00,.00,1.67,.00,20.00
15/11/2019,HOO HOOTSUITE INC,A10810,Communications & Cust Services,Advertising,218.88,218.88,.00,.00,.00,.00
18/11/2019,teamviewer.com,A12014,Lorry Park,Subscriptions,459.36,459.36,.00,.00,.00,.00
18/11/2019,LON STCK EXC/NET,A10895,Financial Services,Professional Services,65.00,78.00,.00,13.00,.00,20.00
18/11/2019,ASDA GROCERIES ONLINE,A11902,Civic Expenses,Removal Of Old Records,41.00,41.00,.00,.00,.00,.00
18/11/2019,ASDA GROCERIES ONLINE,A11831,Castle House,Catering,40.16,40.16,.00,.00,.00,.00
18/11/2019,ONE STOP 3018,A10213,Housing Options,Recharge Third Party,20.00,20.00,.00,.00,.00,.00
18/11/2019,ONE STOP 3018,A10213,Housing Options,Recharge Third Party,20.00,20.00,.00,.00,.00,.00
18/11/2019,ONE STOP 3018,A10213,Housing Options,Recharge Third Party,20.00,20.00,.00,.00,.00,.00
18/11/2019,ONE STOP 3018,A10213,Housing Options,Recharge Third Party,20.00,20.00,.00,.00,.00,.00
18/11/2019,ONE STOP 3018,A10213,Housing Options,Recharge Third Party,20.00,20.00,.00,.00,.00,.00
19/11/2019,RINGTONS TEA,N10101,Southwell Tr admin & ops,Advertising,164.85,164.85,.00,.00,.00,.00
19/11/2019,NEWARK CASTLE TO,A10908,Housing Benefit Admin,Travel And Subsistence,36.25,36.25,.00,.00,.00,.00
19/11/2019,NEWARK CASTLE TO,A10904,Council Tax,Travel And Subsistence,36.25,36.25,.00,.00,.00,.00
19/11/2019,ROYAL MAIL CHARGES,A10833,Central Postages,Postages,1.50,1.50,.00,.00,.00,.00
19/11/2019,LACE MARKET CAR PARK U,A10864,Corporate Management Team,Travel And Subsistence,3.33,4.00,.00,.67,.00,20.00
19/11/2019,CO OP FOOD,N10101,Southwell Tr admin & ops,Vending Machine Provisions,13.20,13.20,.00,.00,.00,.00
19/11/2019,FLICKR PRO 1 YEAR,A10810,Communications & Cust Services,Professional Services,39.82,39.82,.00,.00,.00,.00
20/11/2019,F DONCASTER LTD,A10109,Heritage Culture and Visitors,Catering,182.71,182.71,.00,.00,.00,.00
20/11/2019,F DONCASTER LTD,A10109,Heritage Culture and Visitors,Catering,157.33,157.33,.00,.00,.00,.00
20/11/2019,E.ON ENERGY SOLUTIONS,A10213,Housing Options,Recharge Third Party,18.10,18.10,.00,.00,.00,.00
19/11/2019,East Midlands Rail,A10864,Corporate Management Team,Travel And Subsistence,221.00,221.00,.00,.00,.00,.00
21/11/2019,CO OP FOOD,N10101,Southwell Tr admin & ops,Vending Machine Provisions,13.20,13.20,.00,.00,.00,.00
21/11/2019,AMZNMktplace,A11135,Env Health Proactive,Stationery,9.62,11.55,.00,1.93,.00,20.00
21/11/2019,ASDA GROCERIES ONLINE,A11831,Castle House,Cleaning Materials,45.10,45.10,.00,.00,.00,.00
21/11/2019,ASDA GROCERIES ONLINE,A11831,Castle House,Catering,44.80,44.80,.00,.00,.00,.00
21/11/2019,SCREWFIX DIRECT,A10109,Heritage Culture and Visitors,Education & Outreach,37.79,37.79,.00,.00,.00,.00
21/11/2019,DISCLOSURE & BARRING,A10812,Personnel Section,Disclosure & barring service,13.00,13.00,.00,.00,.00,.00
21/11/2019,SKDC CUSTOMER SERVICE,N10101,Southwell Tr admin & ops,Professional Services,432.00,432.00,.00,.00,.00,.00
23/11/2019,Oyster Auto-top up,A15028,Aggregated Budgets,Travel And Subsistence,20.00,20.00,.00,.00,.00,.00
22/11/2019,NEWARK CASTLE TO,A11135,Env Health Proactive,Travel And Subsistence,65.50,65.50,.00,.00,.00,.00
24/11/2019,AMZNMktplace,A10109,Heritage Culture and Visitors,Education & Outreach,15.76,15.76,.00,.00,20.00,.00
22/11/2019,AMZNMktplace,A10109,Heritage Culture and Visitors,Promotion Of Events,4.98,4.98,.00,.00,.00,.00
24/11/2019,CO OP FOOD,N10101,Southwell Tr admin & ops,Vending Machine Provisions,13.20,13.20,.00,.00,.00,.00
23/11/2019,CO OP FOOD,N10101,Southwell Tr admin & ops,Vending Machine Provisions,17.60,17.60,.00,.00,.00,.00
22/11/2019,Allpay  LONGHURST GROU,A10213,Housing Options,Prevention Fund,327.88,327.88,.00,.00,.00,.00
22/11/2019,Amazon.co.uk EC79K83D5,A10809,Customer Services,Contractual Services,14.19,17.03,.00,2.84,.00,20.00
25/11/2019,W BOYES & CO LTD NEWAR,A10109,Heritage Culture and Visitors,Other Equipment And Tools,4.17,5.00,.00,.83,.00,20.00
25/11/2019,WWW.WILLOWGROWERS.CO.U,A11442,Arts Development,Parish Cncls And Vol Bodies,54.15,54.15,.00,.00,.00,.00
25/11/2019,EB  AAFDA ANNUAL CONFE,A10841,Central Personnel Expenses,Internal Training,175.00,175.00,.00,.00,.00,.00
25/11/2019,ROYAL MAIL CHARGES,A10833,Central Postages,Postages,1.50,1.50,.00,.00,.00,.00
25/11/2019,ROYAL MAIL CHARGES,A10833,Central Postages,Postages,1.50,1.50,.00,.00,.00,.00
25/11/2019,ROYAL MAIL CHARGES,A10833,Central Postages,Postages,1.50,1.50,.00,.00,.00,.00
25/11/2019,ROYAL MAIL CHARGES,A10833,Central Postages,Postages,2.00,2.00,.00,.00,.00,.00
25/11/2019,ROYAL MAIL CHARGES,A10833,Central Postages,Postages,1.50,1.50,.00,.00,.00,.00
25/11/2019,ROYAL MAIL CHARGES,A10833,Central Postages,Postages,1.50,1.50,.00,.00,.00,.00
25/11/2019,ASDA GROCERIES ONLINE,A11831,Castle House,Catering,41.52,41.52,.00,.00,.00,.00
26/11/2019,FACEBK R6GCBQ6EQ2,A10109,Heritage Culture and Visitors,Advertising,166.16,166.16,.00,.00,.00,.00
25/11/2019,ONE STOP 3018,A10213,Housing Options,Recharge Third Party,20.00,20.00,.00,.00,.00,.00
25/11/2019,ONE STOP 3018,A10213,Housing Options,Recharge Third Party,20.00,20.00,.00,.00,.00,.00
25/11/2019,ONE STOP 3018,A10213,Housing Options,Recharge Third Party,20.00,20.00,.00,.00,.00,.00
25/11/2019,WWW.WEPRINTLANYARDS.CO,A11831,Castle House,Other Equipment And Tools,105.50,126.60,.00,21.10,.00,20.00
26/11/2019,THE RANGE-NEWARK,A10217,Syrian resettlement scheme,Recharge Third Party,26.54,31.85,.00,5.31,.00,20.00
26/11/2019,NEWARK CASTLE TO,A10819,Legal Section,Training Expenses,21.00,21.00,.00,.00,.00,.00
26/11/2019,WM MORRISONS STORE,A11442,Arts Development,Promotion Of Events,27.24,27.24,.00,.00,.00,.00
27/11/2019,CO OP FOOD,N10101,Southwell Tr admin & ops,Vending Machine Provisions,13.20,13.20,.00,.00,.00,.00
27/11/2019,WILKO RETAIL LIMITED,A10109,Heritage Culture and Visitors,Advertising,14.17,17.00,.00,2.83,.00,20.00
27/11/2019,NEWARK CASTLE TO,A11841,Corporate Property,Travel And Subsistence,30.80,30.80,.00,.00,.00,.00
27/11/2019,AMZNMktplace,A11573,Promotion Of Tourism,Contractual Services,14.98,14.98,.00,.00,.00,.00
28/11/2019,ROYAL MAIL CHARGES,A10833,Central Postages,Telephones,1.50,1.50,.00,.00,.00,.00
28/11/2019,ASDA GROCERIES ONLINE,A11831,Castle House,Catering,45.76,45.76,.00,.00,.00,.00
29/11/2019,Oyster Auto-top up,A15028,Aggregated Budgets,Travel And Subsistence,20.00,20.00,.00,.00,.00,.00
28/11/2019,Oyster Auto-top up,A15028,Aggregated Budgets,Travel And Subsistence,20.00,20.00,.00,.00,.00,.00
28/11/2019,Oyster Auto-top up,A15028,Aggregated Budgets,Travel And Subsistence,20.00,20.00,.00,.00,.00,.00
29/11/2019,WILKO RETAIL LIMITED,A10109,Heritage Culture and Visitors,Other Equipment And Tools,6.25,7.50,.00,1.25,.00,20.00
29/11/2019,AMZNMktplace,A10109,Heritage Culture and Visitors,Other Equipment And Tools,39.61,39.61,.00,.00,.00,.00
29/11/2019,LNER WEB SALES,A10895,Financial Services,Travel And Subsistence,158.00,158.00,.00,.00,.00,.00
29/11/2019,WWW.GREEN-TECH.CO.UK,A11331,Parks And Playing Fields,Contractual Services,137.88,137.88,.00,.00,.00,.00
30/11/2019,LNER WEB SALES,A11136,Env Health Reactive,Travel And Subsistence,-38.00,-38.00,.00,.00,.00,.00
29/11/2019,WM MORRISONS STORE,A10217,Syrian resettlement scheme,Recharge Third Party,23.05,23.05,.00,.00,.00,.00
29/11/2019,WAITROSE 227,A10217,Syrian resettlement scheme,Recharge Third Party,11.20,11.20,.00,.00,.00,.00
01/12/2019,MAILCHIMP    MONTHLY,A10109,Heritage Culture and Visitors,Advertising,66.50,66.50,.00,.00,.09,.00
29/11/2019,CO OP FOOD,N10101,Southwell Tr admin & ops,Meals,13.20,13.20,.00,.00,.00,.00
30/11/2019,LACE MARKET CAR PARK U,A10819,Legal Section,Training Expenses,15.00,15.00,.00,.00,.00,.00
30/11/2019,thetrainline.com,A10819,Legal Section,Training Expenses,2.29,2.29,.00,.00,.00,.00
29/11/2019,East Midlands Rail,A10864,Corporate Management Team,Travel And Subsistence,221.00,221.00,.00,.00,.00,.00
02/12/2019,AMZNMKTPLACE AMAZON.CO,A11135,Env Health Proactive,Stationery,22.77,27.33,.00,4.56,.00,20.00
02/12/2019,ASDA GROCERIES ONLINE,A11831,Castle House,Catering,41.52,41.52,.00,.00,.00,.00
02/12/2019,LNER WEB SALES,A11442,Arts Development,Promotion Of Events,83.50,83.50,.00,.00,.00,.00
02/12/2019,ONE STOP 3018,A10213,Housing Options,Recharge Third Party,30.00,30.00,.00,.00,.00,.00
02/12/2019,ONE STOP 3018,A10213,Housing Options,Recharge Third Party,30.00,30.00,.00,.00,.00,.00
02/12/2019,ONE STOP 3018,A10213,Housing Options,Recharge Third Party,30.00,30.00,.00,.00,.00,.00
02/12/2019,DISCLOSURE & BARRING,A10812,Personnel Section,Disclosure & barring service,13.00,13.00,.00,.00,.00,.00
02/12/2019,LNER WEB SALES,A10864,Corporate Management Team,Travel And Subsistence,77.00,77.00,.00,.00,.00,.00
03/12/2019,XLN TELECOM LTD,N10101,Southwell Tr admin & ops,Telephones,65.44,78.53,.00,13.09,.00,20.00
03/12/2019,W BOYES & CO LTD NEWAR,A10109,Heritage Culture and Visitors,Advertising,1.87,2.25,.00,.38,.00,20.00
03/12/2019,W BOYES & CO LTD NEWAR,A10109,Heritage Culture and Visitors,Advertising,4.17,5.00,.00,.83,.00,20.00
03/12/2019,"CERBERUS, LLC",A11606,Building Control,Computer Software Maintenance,239.47,239.47,.00,.00,.00,.00
03/12/2019,CURRYS,A10213,Housing Options,Recharge Third Party,90.83,109.00,.00,18.17,.00,20.00
03/12/2019,The Furniture Project,A10213,Housing Options,Prevention Fund,33.00,33.00,.00,.00,.00,.00
04/12/2019,AMZNMktplace,N10101,Southwell Tr admin & ops,Other Equipment And Tools,84.39,84.39,.00,.00,.00,.00
04/12/2019,ASDA GROCERIES ONLINE,A11831,Castle House,Catering,52.31,52.31,.00,.00,.00,.00
04/12/2019,ASDA GROCERIES ONLINE,A11831,Castle House,Catering,-3.38,-3.38,.00,.00,.00,.00
05/12/2019,AMZNMktplace,A11442,Arts Development,Parish Cncls And Vol Bodies,39.07,39.07,.00,.00,.00,.00
04/12/2019,ROYAL MAIL CHARGES,A10833,Central Postages,Postages,3.00,3.00,.00,.00,.00,.00
04/12/2019,ROYAL MAIL CHARGES,A10833,Central Postages,Postages,1.50,1.50,.00,.00,.00,.00
05/12/2019,,,,,-13021.65,-13021.65,.00,.00,.00,.00
05/12/2019,AMZNMktplace,A10109,Heritage Culture and Visitors,Other Equipment And Tools,21.57,25.89,.00,4.32,.00,20.00
05/12/2019,WWW.HSSTRAINING.COM,A10841,Central Personnel Expenses,Internal Training,352.04,352.04,.00,.00,.00,.00
05/12/2019,Primeprint Newark Ltd,A10109,Heritage Culture and Visitors,Advertising,49.17,59.00,.00,9.83,.00,20.00
05/12/2019,WILKO RETAIL LIMITED,A10109,Heritage Culture and Visitors,Advertising,6.67,8.00,.00,1.33,.00,20.00
05/12/2019,DISCLOSURE & BARRING,A10103,Museums Management,Professional Services,13.00,13.00,.00,.00,.00,.00
05/12/2019,DVLA VEHICLE TAX,A26901,Vehicle Pool Workshop,Licences & M.O.T.'S,262.50,262.50,.00,.00,.00,.00
05/12/2019,DVLA VEHICLE TAX,A26901,Vehicle Pool Workshop,Licences & M.O.T.'S,262.50,262.50,.00,.00,.00,.00
05/12/2019,DVLA VEHICLE TAX,A26901,Vehicle Pool Workshop,Licences & M.O.T.'S,262.50,262.50,.00,.00,.00,.00
05/12/2019,DVLA VEHICLE TAX,A26901,Vehicle Pool Workshop,Licences & M.O.T.'S,262.50,262.50,.00,.00,.00,.00
05/12/2019,CO OP FOOD,N10101,Southwell Tr admin & ops,Vending Machine Provisions,13.20,13.20,.00,.00,.00,.00
06/12/2019,Oyster Auto-top up,A15028,Aggregated Budgets,Travel And Subsistence,20.00,20.00,.00,.00,.00,.00
07/12/2019,WM MORRISONS STORE,A10109,Heritage Culture and Visitors,Promotion Of Events,32.08,38.50,.00,6.42,.00,20.00
07/12/2019,WM MORRISONS STORE,A10109,Heritage Culture and Visitors,Promotion Of Events,13.60,13.60,.00,.00,.00,.00
07/12/2019,WM MORRISONS STORE,A10109,Heritage Culture and Visitors,Promotion Of Events,2.82,-3.60,.00,-6.42,.00,.00
09/12/2019,AMZNMktplace,A10109,Heritage Culture and Visitors,Other Equipment And Tools,20.29,20.29,.00,.00,.00,.00
06/12/2019,AMZNMKTPLACE AMAZON.CO,A10109,Heritage Culture and Visitors,Promotion Of Events,8.68,8.68,.00,.00,20.00,.00
06/12/2019,AMZNMKTPLACE AMAZON.CO,A10109,Heritage Culture and Visitors,Promotion Of Events,12.49,12.49,.00,.00,.00,.00
07/12/2019,CO OP FOOD,N10101,Southwell Tr admin & ops,Vending Machine Provisions,15.40,15.40,.00,.00,.00,.00
06/12/2019,ASDA STORES 4474,C54495,Food Environment Grant,Contractual Services,15.50,15.50,.00,.00,.00,.00
06/12/2019,HOME BARGAINS (RETFORD,C54495,Food Environment Grant,Contractual Services,51.63,51.63,.00,.00,.00,.00
06/12/2019,DISCLOSURE & BARRING,A10812,Personnel Section,Disclosure & barring service,13.00,13.00,.00,.00,.00,.00
06/12/2019,DISCLOSURE & BARRING,A10812,Personnel Section,Disclosure & barring service,13.00,13.00,.00,.00,.00,.00
06/12/2019,DISCLOSURE & BARRING,A10812,Personnel Section,Disclosure & barring service,13.00,13.00,.00,.00,.00,.00
06/12/2019,DISCLOSURE & BARRING,A10812,Personnel Section,Disclosure & barring service,13.00,13.00,.00,.00,.00,.00
09/12/2019,NEWARK CASTLE TO,A10895,Financial Services,Travel And Subsistence,150.00,150.00,.00,.00,.00,.00
09/12/2019,NEWARK & SHERWOOD LOCK,A10109,Heritage Culture and Visitors,Repairs And Maintenance,8.33,10.00,.00,1.67,.00,20.00
09/12/2019,LNER WEB SALES,A11844,Corporate Development,Travel And Subsistence,76.00,76.00,.00,.00,.00,.00
09/12/2019,ASDA GROCERIES ONLINE,A11831,Castle House,Catering,41.52,41.52,.00,.00,.00,.00
09/12/2019,ASDA GROCERIES ONLINE,A11831,Castle House,Cleaning Materials,41.00,41.00,.00,.00,.00,.00
09/12/2019,AMZNMKTPLACE AMAZON.CO,A10109,Heritage Culture and Visitors,Promotion Of Events,5.02,5.02,.00,.00,20.00,.00
09/12/2019,Trainline,,,,39.07,39.07,.00,.00,.00,.00
10/12/2019,WWW.INTELLIGENTHANDDRY,A11810,Newark Business Innovation Cen,Premises Repairs & Renewals,-231.99,-278.39,.00,-46.40,.00,20.00
09/12/2019,WM MORRISONS STORE,A10109,Heritage Culture and Visitors,Catering,3.20,3.20,.00,.00,.00,.00
09/12/2019,F DONCASTER LTD,A10109,Heritage Culture and Visitors,Catering,169.68,169.68,.00,.00,.00,.00
09/12/2019,F DONCASTER LTD,A10109,Heritage Culture and Visitors,Catering,144.81,144.81,.00,.00,.00,.00
10/12/2019,ROYAL MAIL CHARGES,A10833,Central Postages,Postages,1.50,1.50,.00,.00,.00,.00
10/12/2019,ROYAL MAIL CHARGES,A10833,Central Postages,Postages,1.50,1.50,.00,.00,.00,.00
09/12/2019,WWW.WEPRINTLANYARDS.CO,C54635,Elections,Election Expenses,100.50,120.60,.00,20.10,.00,20.00
10/12/2019,M&S SIMPLY FOOD-SSP,A10217,Syrian resettlement scheme,Recharge Third Party,8.85,8.85,.00,.00,.00,.00
09/12/2019,ALDI 31 779,A11442,Arts Development,Promotion Of Events,32.97,39.57,.00,6.60,.00,20.00
10/12/2019,ONE STOP 3018,A10213,Housing Options,Recharge Third Party,20.00,20.00,.00,.00,.00,.00
10/12/2019,ONE STOP 3018,A10213,Housing Options,Recharge Third Party,20.00,20.00,.00,.00,.00,.00
10/12/2019,ONE STOP 3018,A10213,Housing Options,Recharge Third Party,20.00,20.00,.00,.00,.00,.00
10/12/2019,ONE STOP 3018,A10213,Housing Options,Recharge Third Party,20.00,20.00,.00,.00,.00,.00
10/12/2019,ONE STOP 3018,A10213,Housing Options,Recharge Third Party,20.00,20.00,.00,.00,.00,.00
11/12/2019,Amazon.co.uk HX49G9K25,A10109,Heritage Culture and Visitors,Catering,30.99,37.19,.00,6.20,.00,20.00
11/12/2019,WILKO RETAIL LIMITED,A10109,Heritage Culture and Visitors,Other Equipment And Tools,2.50,3.00,.00,.50,.00,20.00
11/12/2019,THOMSON REUTERS UK LTD,A11604,Area Planning,Subscriptions,79.00,79.00,.00,.00,.00,.00
11/12/2019,Trainline,A11607,Energy Services,Travel And Subsistence,137.36,137.36,.00,.00,.00,.00
11/12/2019,E.ON ENERGY SOLUTIONS,A10213,Housing Options,Recharge Third Party,8.93,8.93,.00,.00,.00,.00
11/12/2019,CARPET CONNECTION,A10217,Syrian resettlement scheme,Recharge Third Party,416.67,500.00,.00,83.33,.00,20.00
10/12/2019,CO OP FOOD,N10101,Southwell Tr admin & ops,Vending Machine Provisions,13.20,13.20,.00,.00,.00,.00
12/12/2019,BHI UK,A26901,Vehicle Pool Workshop,Materials,68.00,81.60,.00,13.60,.00,20.00
12/12/2019,ASDA GROCERIES ONLINE,A11831,Castle House,Cleaning Materials,45.00,45.00,.00,.00,.00,.00
12/12/2019,ASDA GROCERIES ONLINE,A11831,Castle House,Catering,50.99,50.99,.00,.00,.00,.00
12/12/2019,FACEBK 5YVVTP64V2,A11573,Promotion Of Tourism,Advertising,125.00,125.00,.00,.00,.00,.00
11/12/2019,CHARTERED INSTITUTE OF,A10819,Legal Section,Subscriptions,364.00,364.00,.00,.00,.00,.00
13/12/2019,MILLGATE HOUSE,C54635,Elections,Election Expenses,172.17,206.60,.00,34.43,.00,20.00
11/12/2019,Dominos Pizza UK & Ire,C54015,Vulnerable People,Other Equipment And Tools,76.63,91.95,.00,15.32,.00,20.00
13/12/2019,Primeprint Newark Ltd,A10109,Heritage Culture and Visitors,Advertising,9.00,10.80,.00,1.80,.00,20.00
13/12/2019,ADOBE CREATIVE CLOUD,A10109,Heritage Culture and Visitors,Advertising,59.00,70.80,.00,11.80,.00,20.00
13/12/2019,CO OP FOOD,N10101,Southwell Tr admin & ops,Vending Machine Provisions,13.20,13.20,.00,.00,.00,.00
16/12/2019,WWW.MOTOR.ORG.UK,A26901,Vehicle Pool Workshop,Materials,180.00,216.00,.00,36.00,.00,20.00
16/12/2019,AMZNMktplace,A11831,Castle House,Repairs And Maintenance,41.65,41.65,.00,.00,.00,.00
13/12/2019,WWW.ARCO.CO.UK,A11604,Area Planning,Clothing And Uniforms,85.44,102.53,.00,17.09,.00,20.00
16/12/2019,FACEBK U8ZDMPS3V2,A11573,Promotion Of Tourism,Advertising,125.00,125.00,.00,.00,.00,.00
17/12/2019,NEWARK & SHERWOOD LOCK,A10109,Heritage Culture and Visitors,Other Equipment And Tools,16.25,19.50,.00,3.25,.00,20.00
17/12/2019,NEWARK & SHERWOOD LOCK,A10109,Heritage Culture and Visitors,Other Equipment And Tools,25.00,30.00,.00,5.00,.00,20.00
16/12/2019,WM MORRISONS STORE,A10109,Heritage Culture and Visitors,Catering,2.50,3.00,.00,.50,.00,20.00
17/12/2019,LNER WEB SALES,A10814,Licensing Admin,Travel And Subsistence,49.50,49.50,.00,.00,.00,.00
17/12/2019,LNER WEB SALES,A11135,Env Health Proactive,Travel And Subsistence,85.50,85.50,.00,.00,.00,.00
17/12/2019,ASDA GROCERIES ONLINE,A11831,Castle House,Catering,40.70,40.70,.00,.00,.00,.00
17/12/2019,THE CURTAIN MILL,A10217,Syrian resettlement scheme,Recharge Third Party,275.95,275.95,.00,.00,.00,.00
17/12/2019,Primeprint Newark Ltd,A10109,Heritage Culture and Visitors,Advertising,14.00,16.80,.00,2.80,.00,20.00
17/12/2019,Jessops,A10213,Housing Options,Professional Services,57.50,69.00,.00,11.50,.00,20.00
17/12/2019,ONE STOP 3018,A10213,Housing Options,Recharge Third Party,40.00,40.00,.00,.00,.00,.00
17/12/2019,ONE STOP 3018,A10213,Housing Options,Recharge Third Party,40.00,40.00,.00,.00,.00,.00
17/12/2019,ONE STOP 3018,A10213,Housing Options,Recharge Third Party,20.00,20.00,.00,.00,.00,.00
17/12/2019,ONE STOP 3018,A10213,Housing Options,Recharge Third Party,40.00,40.00,.00,.00,.00,.00
18/12/2019,AMZNMktplace,A11135,Env Health Proactive,Professional Services,29.77,35.72,.00,5.95,.00,20.00
19/12/2019,LLG ENTERPRISES LTD,A10841,Central Personnel Expenses,Internal Training,430.00,516.00,.00,86.00,.00,20.00
19/12/2019,LNER WEB SALES,A11604,Area Planning,Travel And Subsistence,34.60,34.60,.00,.00,.00,.00
19/12/2019,E.ON ENERGY SOLUTIONS,A10213,Housing Options,Recharge Third Party,11.18,11.18,.00,.00,.00,.00
19/12/2019,ASDA GROCERIES ONLINE,A11831,Castle House,Cleaning Materials,54.00,54.00,.00,.00,.00,.00
19/12/2019,ASDA GROCERIES ONLINE,A11831,Castle House,Catering,43.00,43.00,.00,.00,.00,.00
20/12/2019,FACEBK FG6H9Q24V2,A11573,Promotion Of Tourism,Advertising,86.75,86.75,.00,.00,.00,.00
19/12/2019,HOME BARGAINS NEWARK,C54495,Food Environment Grant,Contractual Services,12.67,15.20,.00,2.53,.00,20.00
19/12/2019,ALDI 31 779,C54495,Food Environment Grant,Contractual Services,70.28,70.28,.00,.00,.00,.00
19/12/2019,DISCLOSURE & BARRING,A10812,Personnel Section,Disclosure & barring service,13.00,13.00,.00,.00,.00,.00
18/12/2019,NEXT DIRECTORY,A10809,Customer Services,Clothing And Uniforms,33.99,33.99,.00,.00,.00,.00
19/12/2019,SKDC CUSTOMER SERVICE,TC3135,Buttermarket refurbishment,Contract Work,540.00,540.00,.00,.00,.00,.00
21/12/2019,AMZNMKTPLACE AMAZON.CO,A11135,Env Health Proactive,Clothing And Uniforms,98.45,98.45,.00,.00,.00,.00
21/12/2019,AMZNMKTPLACE AMAZON.CO,A11135,Env Health Proactive,Clothing And Uniforms,-47.98,-47.98,.00,.00,.00,.00
19/12/2019,AMZNMKTPLACE AMAZON.CO,A11831,Castle House,Cleaning Materials,29.99,35.99,.00,6.00,.00,20.00
21/12/2019,GODADDY.COM EUROPE,A11336,Vicar Water Park,Contractual Services,23.98,28.78,.00,4.80,.00,20.00
22/12/2019,FACEBK 4NT9PQ63V2,A11573,Promotion Of Tourism,Advertising,125.00,125.00,.00,.00,.00,.00
20/12/2019,ASDA  STORES 4201,C54495,Food Environment Grant,Contractual Services,16.00,16.00,.00,.00,.00,.00
23/12/2019,ASDA  STORES 4201,A10109,Heritage Culture and Visitors,Catering,14.00,14.00,.00,.00,.00,.00
24/12/2019,E.ON ENERGY SOLUTIONS,A10213,Housing Options,Recharge Third Party,20.26,20.26,.00,.00,.00,.00
24/12/2019,E.ON ENERGY SOLUTIONS,A10213,Housing Options,Recharge Third Party,20.96,20.96,.00,.00,.00,.00
26/12/2019,FACEBK YTAZWQEDQ2,A10109,Heritage Culture and Visitors,Advertising,71.76,71.76,.00,.00,.00,.00
27/12/2019,FACEBK VT7Z5QJTQ2,,,,100.00,100.00,.00,.00,.00,.00
